{"text_format":"1","workbook":"xlsx","n_sheets":14,"sheets":["SolicitudRetribucion","CP1","CP2","CP3","CP4","CP5","CP6","CP7","CP8","CP9","CP10","CDestino","CuotaPatronal","Categorias"],"not_rendered":{"charts":0,"images":34,"macros":1,"external_links":0,"defined_names":13,"comments":1,"pivot_tables":0},"unopened":[],"bounds":{"document_bytes":16777216,"sheet_cells":100000,"rows_first":2000,"rows_last":500,"rows_between":2000,"halvings":0,"cell_chars":16384,"cell_head_chars":4096},"cells_cut":0,"cells_raw":0,"read":"whole","date_system":"1900"}

{"sheet":"SolicitudRetribucion","index":0,"n_rows":108,"n_cols":14,"rows_kept":108,"cut":false,"hidden":false,"merged":[[40,9,40,10],[92,0,92,3],[89,0,89,3],[89,4,89,10],[94,4,94,10],[90,4,90,10],[91,4,91,10],[93,4,93,10],[98,0,98,3],[98,4,98,10],[95,4,95,10],[97,4,97,10],[92,4,92,10],[96,0,96,3],[96,4,96,10],[90,0,90,3],[94,0,94,3],[91,0,91,3],[93,0,93,3],[97,0,97,3],[1,9,1,10],[2,9,3,10],[38,6,38,8],[43,3,43,4],[7,0,7,10],[8,0,8,10],[11,0,11,3],[12,0,12,3],[11,4,11,10],[12,4,12,10],[10,0,10,10],[9,0,9,10],[16,0,16,2],[16,3,16,10],[33,0,35,10],[40,0,40,2],[41,0,41,2],[26,0,26,10],[28,8,29,9],[18,0,18,2],[13,0,13,3],[27,1,27,10],[18,3,18,10],[13,4,13,10],[68,0,68,10],[78,0,78,10],[70,0,70,10],[65,7,65,10],[61,0,61,6],[56,0,58,10],[46,4,46,7],[47,8,47,10],[51,0,51,3],[67,0,67,10],[52,0,52,10],[65,0,65,6],[77,0,77,10],[51,4,51,7],[55,0,55,10],[62,0,64,6],[79,0,80,10],[95,0,95,3],[53,0,53,10],[39,3,39,5],[38,9,38,10],[37,0,37,10],[36,0,36,10],[40,3,40,5],[39,9,39,10],[40,7,40,8],[51,8,51,10],[46,0,46,3],[47,0,50,3],[41,9,41,10],[59,0,59,10],[82,0,82,10],[75,0,75,10],[61,7,61,10],[48,8,50,10],[39,0,39,2],[54,0,54,10],[47,4,50,7],[83,0,83,10],[62,7,64,10],[17,0,17,2],[15,0,15,10],[31,8,31,10],[28,10,29,10],[30,1,30,10],[17,9,17,10],[17,3,17,7],[20,0,20,2],[24,0,24,2],[20,3,20,6],[106,0,106,3],[106,4,106,10],[107,0,107,3],[107,4,107,10],[99,4,99,10],[99,0,99,3],[32,0,32,10],[46,8,46,10],[38,0,38,2],[39,7,39,8],[43,6,43,8],[41,3,41,8],[38,3,38,5],[100,0,100,3],[100,4,100,10],[86,0,86,10],[76,0,76,10],[71,0,71,10],[72,0,72,10],[73,0,73,10],[74,0,74,10],[84,0,84,10],[85,0,85,10],[81,0,81,10],[101,0,101,10],[102,0,102,3],[102,4,102,10],[103,0,103,3],[103,4,103,10],[104,0,104,3],[104,4,104,10],[105,0,105,3],[105,4,105,10]]}
[]
[null,null,null,null,null,null,null,null,null,"Su Referencia"]
[]
[]
[]
[]
[]
["IMPRESO DE RETRIBUCIONES COMPLEMENTARIAS PERSONAL DE LA UGR"]
["Petición de retención de crédito y pago de retribución (mod. 2023)"]
[]
["DATOS DEL SOLICITANTE"]
["Responsable del Centro de Gasto:"]
["Código de Centro de Gasto:        "]
["Nombre del Centro de Gasto:"]
[]
["DATOS PERSONALES DEL PERCEPTOR (1):"]
["Nombre y Apellidos:"]
["NIF, NIE o Pasaporte:",null,null,null,null,null,null,null,"Teléf. contacto:"]
["Departamento/Centro/Servicio:"]
[]
[]
[]
[null,null,null,null,null,null,"Comp.Destino",2060.61,"C.Especf."]
[null,null,null,null,null,null,null,null,null,null,"% C. Patronal"]
["Categoria:",null,null,22.65,null,null,null,null,null,null,0,{"$f":"Categorias!F4","v":4495.5}]
[]
["Tipo de Actividad (Marque lo que proceda):",null,null,null,null,null,null,null,null,null,null,0]
[null,null,null,null,null,null,null,null,null,null,null,{"$f":"IF(L25-L27<0,0,(L25-L27))","v":4495.5}]
[null,null,null,null,null,null,null,null,"Indicar nº horas de la actividad, en su caso:"]
[]
[]
[null,null,null,null,null,null,null,"Especificar:",null,null,null,null,null,"Ceuta"]
["MOTIVO DEL PAGO (Especificar título de la actividad, fechas, horario, etc.)",null,null,null,null,null,null,null,null,null,null,null,null,"Granada"]
[null,null,null,null,null,null,null,null,null,null,null,null,null,"Melilla"]
[]
[]
[]
["CONCEPTO DEL PAGO (realizar retención de crédito por retribución + cuota Seguridad Social, en su caso)"]
["Cantidad a abonar:",null,null,null,null,null,"¿Cantidad Incluye la Cuota Patronal de SS?:"]
["Orgánica",null,null,"Funcional",null,null,"Económica","Retribución",null,"Importe Cuota Patronal S.S."]
[null,null,null,null,null,null,null,{"$f":"(D39*100)/(100+K25)","v":0},null,{"$f":"H41*(K25/100)","v":0}]
[null,null,null,"Imp. total de la RETENCION (Retribución + Cuota Patronal SS):",null,null,null,null,null,{"$f":"H41+J41","v":0}]
[]
[null,null,"En","Granada",null,"a","2023-03-20"]
[]
[]
["RESPONSABLE DE CENTRO DE GASTO, ",null,null,null,null,null,null,null,"AUTORIZACIÓN GERENCIA,"]
[null,null,null,null,null,null,null,null,"(en caso de PAS)"]
[]
[]
[]
[{"$f":"\"Fdo.: \" & E12","v":"Fdo.: "},null,null,null,null,null,null,null,"Fdo:"]
["NOTAS:"]
["(1) Los pagos a personal de la UGR se realizarán a través de nómina. El IRPF aplicable será el que fije la normativa aplicable según los casos."]
["(2) Para pagos de conferencias el importe a retribuir no podrá exceder del que se encuentre estipulado en la Universidad, según los casos.",null,null,null,null,null,null,null,null,null,null,null,null," "]
["(3) Los pagos por docencia no podrán exceder del importe por hora establecido tanto para el personal de la UGR como para el personal externo."]
["PROCEDIMIENTO: Las 2 copias del impreso firmado serán remitidas a la Sección de Presupuestos que, una vez realizada la retención de crédito, remitirá el expediente de retribución al Servicio de Habilitación y Seguridad Social si el importe es <1.000,00 € o, en los demás casos, a la Oficina de Control Interno para su fiscalización y posterior envío al citado Servicio. "]
[]
[]
["Todos los datos facilitados a través del formulario serán tratados  de acuerdo a Ley Orgánica 15/1999, de 13 de diciembre de Protección de Datos"]
[]
["RETENCION REALIZADA",null,null,null,null,null,null,"FISCALIZADO Y CONFORME"]
[]
[]
[]
["Núm Expediente, Fecha y Sello del Servicio de Contab. y Presup.",null,null,null,null,null,null,"Fecha, Firma y Sello"]
[]
["A LA ATENCIÓN DEL SERVICIO DE CONTABILIDAD PRESUPUESTOS DE LA UNIVERSIDAD DE GRANADA"]
[]
[]
["Documentación a aportar:"]
[]
["A.- Conferencias, cursos y similares:"]
["Personal UGR: se tramitará mediante retribución extraordinaria acompañado de la siguiente documentación: "]
["a) Copia de la publicación de la actividad."]
["b) En el caso de Personal de Administración y Servicios (PAS), el pago debe estar autorizado previamente por la Gerencia."]
[]
["B.- Pagos con cargo a Proyectos de investigación:"]
["Personal UGR: se tramitará mediante retribución extraordinaria acompañado de la siguiente documentación: "]
["a) Documentación en la que se indique que la persona a la que se pretende retribuir es miembro del Proyecto/Contrato y existencia de partida económica adecuada y suficiente para soportar el gasto."]
[]
["b) En el caso de Personal de Administración y Servicios (PAS), el pago debe estar autorizado previamente por la Gerencia."]
[]
["C.- Premios:"]
["Personal UGR: se tramitará mediante retribución extraordinaria acompañado de la siguiente documentación: "]
["a) Convocatoria y fallo de la comisión o jurado normbrado a tal efecto para la selección de los candidatos."]
[]
[]
["INSTRUCCIONES PARA CUMPLIMENTAR EL IMPRESO "]
["SU REFERENCIA",null,null,null,"Introduzca aquí el código o información que vd. use para identificar este pago"]
["CODIGO DE CENTRO DE GASTO",null,null,null,"Introduzca aquí los 10 caracteres del codigo del centro de gasto donde se realizará la retención para hacer frente a este pago o, en su caso, modificación presupuestaria."]
["NOMBRE DEL CENTRO DE GASTO",null,null,null,"Introduzca el nombre del Centro de Gasto tal como aparece en la aplicación informática Universitas XXI"]
["DATOS PERSONALES DEL PERCEPTOR",null,null,null,"Cumplimentar obligatoriamente el nombre del perceptor, el NIF, NIE o Pasaporte y el Departamento, Centro o Servicio de destino del mismo."]
["SELECCIÓN DE CATEGORÍA",null,null,null,"Debe ir selecionando una de las opciones disponibles en cada grupo de opciones y al final deberá elegir la categoría en el cuadro combinado 'Categoría'. Esto determinará el porcentaje a aplicar para el cálculo de la Cuota Patronal."]
["COMPLEMENTO DESTINO",null,null,null,"Solo aplicable en el caso de PAS Funcionario"]
["NUMERO DE HORAS DE LA ACTIVIDAD",null,null,null,"Es obligatorio en el caso de 'Conferencias, cursos y similares' y en el de 'actividades extraordinarias'"]
["TIPO DE ACTIVIDAD A RETRIBUIR",null,null,null,"Se deberá marcar la actividad correspondiente por la que se propone  la retribución."]
["ESPECIFICAR",null,null,null,"En caso de seleccionar \"Activiades extraordinarias\" deberá especificarse aquí la actividad de que se trate."]
["MOTIVO DEL PAGO",null,null,null,"Se deberá reflejar el título de la actividad por la que se propone la retribución, fechas de desarrollo, horarios, etc.,  y cualquier otra anotación  por la que quede justificada la participación  en la misma del perceptor "]
["CALCULO DE PAGOS",null,null,null,"* La Cuota Patronal de SS (CPSS) es aplicable a todos los pagos menos los realizados a PDI que haya adquirido la condición de Funcionario de Carrera antes de 01-01-2011 que cotizan exclusivamente a MUFACE\n* La CPSS se calculará aplicando el % correspondiente a su categoría al resultado de la operación: Base de Cotización Máxima - Base de Cotización mínima de su categoría.\n* Si NO está seleccionada la opción '¿Cantidad Incluye la Cuota Patronal de SS?', el 'Importe Total de Retención' a cargar en el centro de gasto será el resultado de sumar la cantidad a abonar y la correspondiente a la CPSS \n",null,null,null,null,null,null,null,null," "]
["APLICACIÓN PRESUPUESTARIA",null,null,null,"*Si la financiación para el pago de la retribución proviene de créditos para operaciones corrientes,   en el campo “Orgánica” se indicará:\n- Formación y Perfeccionamiento dirigido al PAS: con cargo a la aplicación presupuestaria 3020480000-422D-162.01\"\n- Formación y Perfeccionamiento dirigido al PDI: se sustituirá la RC por una propuesta de modificación presupuestaria (Ver I. Octava de la Instrucción de la Grencia que regula la materia). En ese caso Organica será: 3040000000.\n- Para la participación ocasional del PDI y PAS en actividades distintas de las anteriores, se realizará retención con cargo a la orgánica y funcional del centro de gasto que lo financie (puesta por Vd), y económica 226.06\n* En caso de que la financiación para el pago de la retribución provenga de créditos para operaciones de capital el campo \"Orgánica\" deberá coincidir con el código del Centro de Gastos reflejado en el cuadro \"DATOS DEL SOLICITANTE\", indicándose la Funcional y Económica que corresponda"]
["INFORMACIÓN BÁSICA SOBRE PROTECCIÓN DE SUS DATOS PERSONALES APORTADOS"]
["Responsable:",null,null,null,"UNIVERSIDAD DE GRANADA"]
["Legitimación",null,null,null,"La Universidad de Granada se encuentra legitimada para el tratamiento de los datos personales aportados por ser necesario el cumplimiento de una obligación legal aplicable al responsable del tratamiento: Art. 6.1.c) RGPD."]
["Finalidad:",null,null,null,"Recogida de datos para pago de retribuciones complementarias personal de la UGR."]
["Destinatarios:",null,null,null,"Entidad bancaria, Agencia Tributaria."]
["Derechos:",null,null,null,"Tiene derecho a solicitar el acceso, oposición, rectificación, supresión o limitación del tratamiento de sus datos, tal y como se explica en la información adicional."]
["Información adicicional:",null,null,null,"Puede consultar la información adicional y detallada sobre protección de datos en el siguiente enlace: sl.ugr.es/0dbr"]

{"sheet":"CP1","index":1,"n_rows":44,"n_cols":11,"rows_kept":44,"cut":false,"hidden":true,"merged":[]}
["COD_PERSONAL","DESC_PERSONAL","COD_NATURALEZA","DESC_NATURALEZA","COD_CATEGORIA","DESC_CATEGORIA","TipoPer","% CUOTA PATRONAL","BaseCotizacionMínima",2023]
[null,"DOCENTE",1,"FUNCIONARIO DE CARRERA","A0500","CATEDRÁTICO DE UNIVERSIDAD",1,0,5148.958333333333,"3 quin + 2 Sex + 5 trienios"]
[null,"DOCENTE",1,"FUNCIONARIO DE CARRERA","A0504","PROFESOR TITULAR DE UNIVERSIDAD",1,0,3943.311666666667,"2 quin + 2 sex + 4 trienios"]
[1,"DOCENTE",1,"FUNCIONARIO DE CARRERA","A0505","CATEDRÁTICO DE ESCUELA UNIVERSITARIA",1,0,3943.311666666667,"2 quin + 2 sex + 4 trienios"]
[1,"DOCENTE",1,"FUNCIONARIO DE CARRERA","A0506","PROFESOR TITULAR DE ESCUELA UNIVERSITARIA",1,0,3436.9883333333332,"3 quin + 0 Sex + 5 trienios"]
[null,"DOCENTE",1,"FUNCIONARIO DE CARRERA","A48EC","PROFESOR AGREGADO DE BACHILLERATO",1,0,null,"no hay nadie ya"]
[null,"DOCENTE",1,"FUNCIONARIO DE CARRERA","A24EC","AYUDANTE TÉCNICO DE ESCUELA ARTES APLIC. Y OFICIOS ARTÍSTICOS",1,0,null,null,"No hay datos en la base. Se ha calculado el 2,25% sobre la cantidad del año anterior."]
[null,"DOCENTE",1,"FUNCIONARIO DE CARRERA","A33EC","PROFESOR DE ESCUELA DE MAESTRÍA INDUSTRIAL",1,0,null,"no hay nadie ya"]
[null,"DOCENTE",1,"FUNCIONARIO DE CARRERA","A35EC","PROFESOR TÉCNICO DE F.P.",1,0,null,"no hay nadie ya","No hay datos en la base. Se ha calculado el 2,25% sobre la cantidad del año anterior."]
[1,"DOCENTE",0,"SIN RELACIÓN JURÍDICA CON LA UNIV","CEUG","COLABORADOR EXTRAORDINARIO",null,0]
[1,"DOCENTE",0,"SIN RELACIÓN JURÍDICA CON LA UNIV","PEUGR","PROFESOR EMÉRITO",null,0]
[1,"DOCENTE",0,"SIN RELACIÓN JURÍDICA CON LA UNIV","UGVLC","PROFESOR VISITANTE LABORAL",null,0]
[]
[]
[]
[]
[]
[]
[]
[]
[]
[]
[]
[]
[]
[]
[]
[]
[]
[]
[]
[]
[]
[]
[]
[]
[]
[]
[]
[]
[]
[]
[]
[null,null,null,"Granada",null,null,"2020-02-25"]

{"sheet":"CP2","index":2,"n_rows":44,"n_cols":10,"rows_kept":44,"cut":false,"hidden":true,"merged":[]}
["COD_PERSONAL","DESC_PERSONAL","COD_NATURALEZA","DESC_NATURALEZA","COD_CATEGORIA","DESC_CATEGORIA","TipoPer","% CUOTA PATRONAL","BaseCotizacionMínima",2022]
[null,"DOCENTE",1,"FUNCIONARIO DE CARRERA","A0500","CATEDRÁTICO DE UNIVERSIDAD INTERINO",1,31.9,{"$f":"'CP1'!I2","v":5148.958333333333},{"$f":"I2","v":5148.958333333333}]
[null,"DOCENTE",1,"FUNCIONARIO DE CARRERA","A0504","PROFESOR TITULAR DE UNIVERSIDAD INTERINO",1,31.9,{"$f":"'CP1'!I3","v":3943.311666666667},{"$f":"I3","v":3943.311666666667}]
[1,"DOCENTE",1,"FUNCIONARIO DE CARRERA","A0505","CATEDRÁTICO DE ESCUELA UNIVERSITARIA INTERINO",1,31.9,{"$f":"'CP1'!I4","v":3943.311666666667},{"$f":"I4","v":3943.311666666667}]
[1,"DOCENTE",1,"FUNCIONARIO DE CARRERA","A0506","PROFESOR TITULAR DE ESCUELA UNIVERSITARIA INTERINO",1,31.9,{"$f":"'CP1'!I5","v":3436.9883333333332},{"$f":"I5","v":3436.9883333333332}]
[]
[]
[]
[]
[]
[]
[]
[]
[]
[]
[]
[]
[]
[]
[]
[]
[]
[]
[]
[]
[]
[]
[]
[]
[]
[]
[]
[]
[]
[]
[]
[]
[]
[]
[]
[]
[]
[]
[null,null,null,null,null,null,"2017-05-12"]

{"sheet":"CP3","index":3,"n_rows":45,"n_cols":11,"rows_kept":45,"cut":false,"hidden":true,"merged":[]}
["COD_PERSONAL","DESC_PERSONAL","COD_NATURALEZA","DESC_NATURALEZA","COD_CATEGORIA","DESC_CATEGORIA","TipoPer","% CUOTA PATRONAL","BaseCotizacionMínima",2022]
[1,"DOCENTE",3,"CONTRATO LABORAL","PEUEC","PROFESOR DE LA E. U. DE  ENFERMERÍA DE CEUTA \"A  EXTINGUIR\" ",3,31.9,{"$f":"J2*1.025","v":2641.4249999999997},2577,"Según nómina de este año incluido cargo académico"]
[null,"DOCENTE",3,"CONTRATO LABORAL","PEUEC","PROFESOR DE LA E. U. DE  ENFERMERÍA DE CEUTA \"A  EXTINGUIR\" TIEMPO PARCIAL",3,31.9,{"$f":"J3*1.025","v":458.90274999999991},447.71,"Según nómina de este año"]
[1,"DOCENTE",3,"CONTRATO LABORAL","T43L","PROFESOR LABORAL PERMANENTE",3,31.9,{"$f":"J4*1.025","v":3294.2973149999993},3213.9485999999997,2700.77]
[1,"DOCENTE",3,"CONTRATO LABORAL","T74C","PROFESOR ASOCIADO EXTRANJERO",3,31.7,{"$f":"J5*1.025","v":2484.8607599999996},2424.2543999999998,"Con trienios"]
[1,"DOCENTE",3,"CONTRATO LABORAL","T80C","PROFESOR DE EDUCACION FÍSICA * A EXTINGUIR",3,31.9,{"$f":"J6*1.025","v":2932.4429999999998},2860.92]
[2,"DOCENTE",4,"CONTRATO LABORAL",null,"PROFESOR AYUDANTE",3,33.1,2057.4299999999998,1949.11]
[1,"DOCENTE",3,"CONTRATO LABORAL","UGADR","PROFESOR AYUDANTE DOCTOR",3,33.1,2804,2102.9899999999998]
[2,"DOCENTE",4,"CONTRATO LABORAL","UGA1L","PROFESOR ASOCIADO LABORAL (6H)",3,33.1,934.66,899.59]
[3,"DOCENTE",5,"CONTRATO LABORAL","UGA1L","PROFESOR ASOCIADO LABORAL (5H)",3,33.1,778.89,749.65]
[4,"DOCENTE",6,"CONTRATO LABORAL","UGA1L","PROFESOR ASOCIADO LABORAL (4H)",3,33.1,597.25,599.73]
[5,"DOCENTE",7,"CONTRATO LABORAL","UGA1L","PROFESOR ASOCIADO LABORAL (3H)",3,33.1,467.34,449.79]
[6,"DOCENTE",8,"CONTRATO LABORAL","UGA1L","PROFESOR ASOCIADO LABORAL (2H)",3,33.1,311.55,299.86]
[1,"DOCENTE",3,"CONTRATO LABORAL","UGCDI","PROFESOR CONTRATADO DOCTOR INTERINO",3,31.9,3115.5566666666668,2998.63]
[1,"DOCENTE",3,"CONTRATO LABORAL","UGCDR","PROFESOR CONTRATADO DOCTOR",3,31.9,3527.82,3362.79,"2trienios + 2 tramos"]
[null,null,2,"CONTRATO LABORAL","UGCLB","PROFESOR COLABORADOR (NO Doctor)",null,31.9,2613.0100000000002,2548.83]
[1,"DOCENTE",3,"CONTRATO LABORAL","UGCLB","PROFESOR COLABORADOR (DOCTOR)",3,31.9,3220.54,3066.88,"2trienios + 2 tramos"]
[1,"DOCENTE",3,"CONTRATO LABORAL","UGCSL","PROFESOR ASOCIADO CIENCIAS SALUD",3,33.1,309.8,297.86]
[1,"DOCENTE",3,"CONTRATO LABORAL","UGISD","PROFESOR SUSTITUTO INTERINO",3,31.9,1869.34,1719.18]
[2,"DOCENTE",4,"CONTRATO LABORAL","UGISP","PROFESOR SUSTITUTO INTERINO TIEMPO PARCIAL (6H)",3,31.9,934.66,899.59]
[3,"DOCENTE",5,"CONTRATO LABORAL","UGISP","PROFESOR SUSTITUTO INTERINO TIEMPO PARCIAL (5H)",3,31.9,778.89,749.65]
[4,"DOCENTE",6,"CONTRATO LABORAL","UGISP","PROFESOR SUSTITUTO INTERINO TIEMPO PARCIAL (4H)",3,31.9,597.25,599.73]
[5,"DOCENTE",7,"CONTRATO LABORAL","UGISP","PROFESOR SUSTITUTO INTERINO TIEMPO PARCIAL (3H)",3,31.9,467.34,449.79]
[6,"DOCENTE",8,"CONTRATO LABORAL","UGISP","PROFESOR SUSTITUTO INTERINO TIEMPO PARCIAL (2H)",3,31.9,311.55,299.86]
[1,"DOCENTE",3,"CONTRATO LABORAL","UGVLC","PROFESOR VISITANTE LABORAL",3,33.1,2010.07,1932.35,"Sin trienios"]
[null,"DOCENTE",3,"CONTRATO LABORAL",null,"PROFESOR VISITANTE LABORAL- DOCTOR",3,33.1,2447.61,2353.31,"Sin trienios"]
[]
[]
[]
[]
[]
[]
[]
[]
[]
[]
[]
[]
[]
[]
[]
[]
[]
[]
[null,null,null,"Granada",null,null,"2019-01-25"]

{"sheet":"CP4","index":4,"n_rows":24,"n_cols":11,"rows_kept":24,"cut":false,"hidden":true,"merged":[]}
["COD_PERSONAL","DESC_PERSONAL","COD_NATURALEZA","DESC_NATURALEZA","COD_CATEGORIA","DESC_CATEGORIA","TipoPer","% CUOTA PATRONAL","BaseCotizacionMínima",2022,"Facilitado por Miguel Angel Guardia"]
[6,"INVESTIGADOR CONTRATADO",3,"CONTRATO LABORAL","APPP","AYUDA PUENTE DOCTORES PLAN PROPIO",4,33.1,{"$f":"J2*1.025","v":1611.6074999999998},1572.3]
[6,"INVESTIGADOR CONTRATADO",6,"PERSONAL DEL CONSEJO SOCIAL","APPP","AYUDA PUENTE DOCTORES PLAN PROPIO",4,33.1,{"$f":"J3*1.025","v":1611.6074999999998},1572.3]
[6,"INVESTIGADOR CONTRATADO",3,"CONTRATO LABORAL","IPPP","AYUDAS A LA INVESTIGACION POSDOCTORAL PLAN PROPIO",4,33.1,1611.6074999999998,1572.3]
[6,"INVESTIGADOR CONTRATADO",3,"CONTRATO LABORAL","CIPR","CONTRATO INVESTIGADOR CON CARGO A PROYECTO",4,33.1,1611.6074999999998,1572.3]
[6,"INVESTIGADOR CONTRATADO",3,"CONTRATO LABORAL","FPU11","CONTRATOS  PREDOCTORALES LEY 14/2011 FPU",4,26.02,1611.6074999999998,1572.3]
[7,"INVESTIGADOR EN FORMACIÓN",3,"CONTRATO LABORAL","FPU11","CONTRATOS  PREDOCTORALES LEY 14/2011 FPU",4,26.02,1611.6074999999998,1572.3]
[6,"INVESTIGADOR CONTRATADO",3,"CONTRATO LABORAL","CDPE","CONTRATOS DOCTORES PROYECTOS DE EXCELENCIA",4,33.1,1611.6074999999998,1572.3]
[6,"INVESTIGADOR CONTRATADO",9,"CONTRATADOS INVESTIGACION","CDPE","CONTRATOS DOCTORES PROYECTOS DE EXCELENCIA",4,33.1,1611.6074999999998,1572.3]
[7,"INVESTIGADOR EN FORMACIÓN",3,"CONTRATO LABORAL","CBE11","CONTRATOS PREDOCTORALES BECARIOS PROY. EXCELENCIA L.14/2011",4,26.02,1611.6074999999998,1572.3]
[7,"INVESTIGADOR EN FORMACIÓN",3,"CONTRATO LABORAL","PROI","CONTRATOS PREDOCTORALES DE OTRAS INSTITUCIONES",4,26.02,1611.6074999999998,1572.3]
[7,"INVESTIGADOR EN FORMACIÓN",3,"CONTRATO LABORAL","11FPI","CONTRATOS PREDOCTORALES FORMACION DOCTORES LEY 14/2011",4,26.02,1611.6074999999998,1572.3]
[7,"INVESTIGADOR EN FORMACIÓN",3,"CONTRATO LABORAL","FPP11","CONTRATOS PREDOCTORALES PLAN PROPIO LEY 14/2011",4,26.02,1611.6074999999998,1572.3]
[7,"INVESTIGADOR EN FORMACIÓN",3,"CONTRATO LABORAL","FPPP","FORMACION DE INVESTIGADORES. PLAN PROPIO",4,33.1,1611.6074999999998,1572.3]
[6,"INVESTIGADOR CONTRATADO",3,"CONTRATO LABORAL","POOI","INVESTIGADOR DOCTOR DE OTRAS INSTITUCIONES",4,33.1,1611.6074999999998,1572.3]
[6,"INVESTIGADOR CONTRATADO",3,"CONTRATO LABORAL","FPDID","INVESTIGADOR DOCTOR JUNTA ANDALUCIA AREAS DEFICITARIAS",4,33.1,1611.6074999999998,1572.3]
[6,"INVESTIGADOR CONTRATADO",3,"CONTRATO LABORAL","PIPRI","PERSONAL INVESTIGADOR DE PROYECTOS INTERNACIONALES",4,33.1,1611.6074999999998,1572.3]
[6,"INVESTIGADOR CONTRATADO",3,"CONTRATO LABORAL","TALEN","POSDOCTORAL TALENTIA JUNTA ANDALUCIA",4,33.1,1611.6074999999998,1572.3]
[6,"INVESTIGADOR CONTRATADO",9,"CONTRATADOS INVESTIGACION","TALEN","POSDOCTORAL TALENTIA JUNTA ANDALUCIA",4,33.1,1611.6074999999998,1572.3]
[6,"INVESTIGADOR CONTRATADO",3,"CONTRATO LABORAL","PRPP","PROGRAMA DE REINCORPORACION DEL PLAN PROPIO",4,33.1,1611.6074999999998,1572.3]
[6,"INVESTIGADOR CONTRATADO",3,"CONTRATO LABORAL","PIJC","PROGRAMA INVESTIGACION JUAN DE LA CIERVA",4,33.1,1611.6074999999998,1572.3]
[6,"INVESTIGADOR CONTRATADO",3,"CONTRATO LABORAL","PIRC","PROGRAMA INVESTIGACION RAMON Y CAJAL",4,31.9,1611.6074999999998,1572.3]
[6,"INVESTIGADOR CONTRATADO",3,"CONTRATO LABORAL","PDPP","PROGRAMA PERFECCIONAMIENTO DOCTORES PLAN PROPIO",4,33.1,1611.6074999999998,1572.3]
[6,"INVESTIGADOR CONTRATADO",3,"CONTRATO LABORAL","PPJID","PROGRAMA PROYECTOS JÓVENES INVESTIGADORES DOCTORES",4,33.1,1611.6074999999998,1572.3]

{"sheet":"CP5","index":5,"n_rows":4,"n_cols":11,"rows_kept":4,"cut":false,"hidden":true,"merged":[]}
["COD_PERSONAL","DESC_PERSONAL","COD_NATURALEZA","DESC_NATURALEZA","COD_CATEGORIA","DESC_CATEGORIA","TipoPer","% CUOTA PATRONAL","BaseCotizacionMínima",2022,"Faciitado por Miguel Angel Guardia"]
[7,"INVESTIGADOR EN FORMACIÓN",11,"CONTRATO EN PRÁCTICAS","11FPI","CONTRATOS PREDOCTORALES FORMACION DOCTORES LEY 14/2011",5,26.02,{"$f":"J2*1.025","v":1611.6074999999998},1572.3]
[7,"INVESTIGADOR EN FORMACIÓN",11,"CONTRATO EN PRÁCTICAS","FPP11","CONTRATOS PREDOCTORALES PLAN PROPIO LEY 14/2011",5,26.02,{"$f":"J3*1.025","v":1611.6074999999998},1572.3]
[7,"INVESTIGADOR EN FORMACIÓN",11,"CONTRATO EN PRÁCTICAS","FPDID","INVESTIGADOR DOCTOR JUNTA ANDALUCIA AREAS DEFICITARIAS",5,33.1,{"$f":"J4*1.025","v":2831.610798448437},{"$f":"(2655.29*1.0175)*1.0225","v":2762.5471204374999}]

{"sheet":"CP6","index":6,"n_rows":48,"n_cols":12,"rows_kept":48,"cut":false,"hidden":true,"merged":[]}
["COD_PERSONAL","DESC_PERSONAL","COD_NATURALEZA","DESC_NATURALEZA","DESC_CATEGORIA",null,"TipoPer","% CUOTA PATRONAL","BaseCotizacionMínima",2022,null,"ESTO MAS LO CORRESPONDIENTE A SU NIVEL DE LA HOJA CDestino"]
[null,null,1,"FUNCIONARIO DE CARRERA","ESCALA AUXILIAR (Grupo C2)","Grupo C2",6,26.2,835.36999999999989,803.17207199999984,"1 trienio"]
[2,"P.A.S.",1,"FUNCIONARIO DE CARRERA","ESCALA ADMINISTRATIVA (Grupo C1)","Grupo C1",6,26.2,1026.9216666666666,987.36,"2 trienios"]
[null,null,null,null,"Grupo B","Grupo B",6,26.2,1195.2283333333332,1149.1626000000001,"2 trienios"]
[2,"P.A.S.",1,"FUNCIONARIO DE CARRERA","ESCALA DE GESTION (Grupo A2)","Grupo A2",6,26.2,1340.095,1288.4640000000002,"2 trienios"]
[2,"P.A.S.",1,"FUNCIONARIO DE CARRERA","ESCALA TECNICA (Grupo A1)","Grupo A1",6,26.2,1530.1933333333334,1471.2276000000002,"2 trienios"]
[]
[2,"P.A.S.",1,"FUNCIONARIO DE CARRERA","ESCALA AYUDANTES ARCHIVOS,BIBL.Y M. (Grupo A2)","TS APOYO DOCENCIA DIRECTOR SERVICIO",6,26.2,{"$f":"$I$6","v":1530.1933333333334}]
[2,"P.A.S.",1,"FUNCIONARIO DE CARRERA","ESCALA FACULTATIVA ARCHIVOS,BIBLIT.Y M. (Grupo A1)","TS APOYO DOCENCIA SUBDIRECTOR SERVICIO",6,26.2,{"$f":"$I$6","v":1530.1933333333334}]
[null,null,null,null,null,"TIT. SUPERIOR DE APOYO A LA DOCENCIA E INVESTIGACIÓN",null,26.2,1530.1933333333334]
[2,"P.A.S.",1,"FUNCIONARIO DE CARRERA","ESCALA ADMINISTRATIVA ESP. INFORMATICA (Grupo C1)","TITULADO SUPERIOR",6,26.2,1530.1933333333334]
[2,"P.A.S.",1,"FUNCIONARIO DE CARRERA","ESCALA DE GESTION ESP.INFORMATICA (Grupo A2)","TITULADO SUPERIOR DE PRENSA E INFORMACIÓN",6,26.2,1530.1933333333334]
[2,"P.A.S.",1,"FUNCIONARIO DE CARRERA","ESCALA TECNICA GESTION ESP. INFORMATICA (Grupo A1)","TITULADO SUPERIOR DE DEPORTES",6,26.2,1530.1933333333334]
[null,null,null,null,null,"TITULADO SUPERIOR DE ACTIVIDADES CULTURALES",null,26.2,1530.1933333333334]
[2,"P.A.S.",1,"FUNCIONARIO DE CARRERA","ESCALA GESTION PROFESIONAL (Grupo A2)","TGM APOYO DOCENCIA DIRECTOR SERVICIO",6,26.2,{"$f":"$I$5","v":1340.095}]
[2,"P.A.S.",1,"FUNCIONARIO DE CARRERA","ESCALA TECNICA PROFESIONAL (Grupo A1)","TGM APOYO DOCENCIA SUBDIRECTOR SERVICIO",6,26.2,{"$f":"$I$5","v":1340.095}]
[null,null,null,null,null,"TITULADO GRADO MEDIO",null,26.2,1340.095]
[2,"P.A.S.",1,"FUNCIONARIO DE CARRERA","ESCALA DE GESTION ESP. ING. TEC. INDRUSTRIAL (Grupo A2)","TIT. GRADO MEDIO DE APOYO A LA DOCENCIA E INVESTIGACIÓN",6,26.2,1340.095]
[null,null,null,null,null,"TIT. GRADO MEDIO PREV. DE RIESGOS LABORALES",null,26.2,1340.095]
[null,null,null,null,null,"TITULADO DE GRADO MEDIO DE DEPORTES",null,26.2,1340.095]
[null,null,null,null,null,"TRABAJADOR SOCIAL",null,26.2,1340.095]
[null,null,null,null,null,"TITULADO DE GRADO MEDIO",null,26.2,1340.095]
[null,null,null,null,null,"ENCARGADO DE EQUIPO",null,26.2,{"$f":"$I$3","v":1026.9216666666666}]
[null,null,null,null,null,"ENCARGADO DE EQUIPO DE CONSERJERIA",null,26.55,{"$f":"$I$3","v":1026.9216666666666}]
[null,null,null,null,null,"DELINEANTE",null,26.2,1026.9216666666666]
[null,null,null,null,null,"TÉCNICO ESPECIALISTA",null,26.2,1026.9216666666666]
[null,null,null,null,null,"TEC. ESPEC. BIBLIOTECA, ARCHIVO Y MUSEO",null,26.2,1026.9216666666666]
[null,null,null,null,null,"TEC. ESPECIALISTA DE PRENSA E INFORMACION",null,26.2,1026.9216666666666]
[null,null,null,null,null,"TEC. ESPECIALISTA DE MEDIOS AUDIOVISUALES",null,26.2,1026.9216666666666]
[null,null,null,null,null,"TECNICO ESPECIALISTA DE LABORATORIO",null,26.2,1026.9216666666666]
[null,null,null,null,null,"TECNICO ESPECIALISTA DE TELECOMUNICACIONES",null,26.2,1026.9216666666666]
[null,null,null,null,null,"TECNICO ESPECIALISTA EN HOSTELERIA",null,26.2,1026.9216666666666]
[null,null,null,null,null,"TEC. ESPEC. PREVENCIÓN DE RIESGOS LABORALES",null,26.2,1026.9216666666666]
[null,null,null,null,null,"TEC. ESPEC. SERV. TEC. OBRAS, EQUIP. Y MANTENIMIENTO",null,26.55,1026.9216666666666]
[null,null,null,null,null,"TEC. ESPECIALISTA ACTIVIDADES CULTURALES",null,26.2,1026.9216666666666]
[null,null,null,null,null,"TEC. ESPECIALISTA DE ADMON. ( A EXT.)",null,26.2,1026.9216666666666]
[null,null,null,null,null,"TECNICO ESPECIALISTA DE ALMACEN",null,26.55,1026.9216666666666]
[null,null,null,null,null,"TECNICO ESPECIALISTA",null,26.2,1026.9216666666666]
[null,null,null,null,null,"CONDUCTOR MECANICO",null,26.2,1026.9216666666666]
[null,null,null,null,null,"INTERPRETE/INFORMADOR",null,26.2,1026.9216666666666]
[null,null,null,null,null,"TEC. AUX. DE ADMINISTRACION ( A EXT.)",null,26.2,{"$f":"$I$2","v":835.36999999999989}]
[null,null,null,null,null,"TEC. AUX. SERV. TEC. OBRAS Y MANTENIMIENTO",null,26.55,{"$f":"$I$2","v":835.36999999999989}]
[null,null,null,null,null,"TECNICO AUXILIAR DE ALMACEN",null,26.55,835.36999999999989]
[null,null,null,"Granada",null,"TECNICO AUXILIAR DE HOSTELERIA","2021-01-18",26.2,835.36999999999989]
[null,null,null,null,null,"TECNICO AUXILIAR DE INSTALAC. DEPORTIVAS",null,26.55,835.36999999999989]
[null,null,null,null,null,"TECNICO AUXILIAR DE LABORATORIO",null,26.2,835.36999999999989]
[null,null,null,null,null,"TECNICO AUXILIAR DE LIMPIEZA",null,28.3,835.36999999999989]
[null,null,null,null,null,"TEC. AUX. DEL SERVICIO DE CONSERJERIA",null,26.55,835.36999999999989]

{"sheet":"CP7","index":7,"n_rows":48,"n_cols":10,"rows_kept":48,"cut":false,"hidden":true,"merged":[]}
["COD_PERSONAL","DESC_PERSONAL","COD_NATURALEZA","DESC_NATURALEZA","COD_CATEGORIA","DESC_CATEGORIA","TipoPer","% CUOTA PATRONAL","BaseCotizacionMínima",2022]
[2,"P.A.S.",2,"FUNCIONARIO DE EMPLEO INTERINO","I7086","Grupo C2",7,31.7,{"$f":"'CP6'!I2","v":835.36999999999989},803.17207199999984]
[2,"P.A.S.",2,"FUNCIONARIO DE EMPLEO INTERINO","I7083","Grupo C1",7,31.7,{"$f":"'CP6'!I3","v":1026.9216666666666},987.36]
[2,"P.A.S.",2,"FUNCIONARIO DE EMPLEO INTERINO","I7490","Grupo B",7,31.7,{"$f":"'CP6'!I4","v":1195.2283333333332},1149.1626000000001]
[2,"P.A.S.",2,"FUNCIONARIO DE EMPLEO INTERINO","I7749","Grupo A2",7,31.7,{"$f":"'CP6'!I5","v":1340.095},1288.4640000000002]
[2,"P.A.S.",2,"FUNCIONARIO DE EMPLEO INTERINO","I7488","Grupo A1",7,31.7,{"$f":"'CP6'!I6","v":1530.1933333333334},1471.2276000000002]
[2,"P.A.S.",2,"FUNCIONARIO DE EMPLEO INTERINO","I7746"]
[null,null,null,null,null,"TS APOYO DOCENCIA DIRECTOR SERVICIO",null,31.7]
[null,null,null,null,null,"TS APOYO DOCENCIA SUBDIRECTOR SERVICIO",null,31.7]
[null,null,null,null,null,"TIT. SUPERIOR DE APOYO A LA DOCENCIA E INVESTIGACIÓN",null,31.7]
[null,null,null,null,null,"TITULADO SUPERIOR",null,31.7]
[null,null,null,null,null,"TITULADO SUPERIOR DE PRENSA E INFORMACIÓN",null,31.7]
[null,null,null,null,null,"TITULADO SUPERIOR DE DEPORTES",null,31.7]
[null,null,null,null,null,"TITULADO SUPERIOR DE ACTIVIDADES CULTURALES",null,31.7]
[null,null,null,null,null,"TGM APOYO DOCENCIA DIRECTOR SERVICIO",null,31.7]
[null,null,null,null,null,"TGM APOYO DOCENCIA SUBDIRECTOR SERVICIO",null,31.7]
[null,null,null,null,null,"TITULADO GRADO MEDIO",null,31.7]
[null,null,null,null,null,"TIT. GRADO MEDIO DE APOYO A LA DOCENCIA E INVESTIGACIÓN",null,31.7]
[null,null,null,null,null,"TIT. GRADO MEDIO PREV. DE RIESGOS LABORALES",null,31.7]
[null,null,null,null,null,"TITULADO DE GRADO MEDIO DE DEPORTES",null,31.7]
[null,null,null,null,null,"TRABAJADOR SOCIAL",null,31.7]
[null,null,null,null,null,"TITULADO DE GRADO MEDIO",null,31.7]
[null,null,null,null,null,"ENCARGADO DE EQUIPO",null,31.7]
[null,null,null,null,null,"ENCARGADO DE EQUIPO DE CONSERJERIA",null,32.049999999999997]
[null,null,null,null,null,"DELINEANTE",null,31.7]
[null,null,null,null,null,"TÉCNICO ESPECIALISTA",null,31.7]
[null,null,null,null,null,"TEC. ESPEC. BIBLIOTECA, ARCHIVO Y MUSEO",null,31.7]
[null,null,null,null,null,"TEC. ESPECIALISTA DE PRENSA E INFORMACION",null,31.7]
[null,null,null,null,null,"TEC. ESPECIALISTA DE MEDIOS AUDIOVISUALES",null,31.7]
[null,null,null,null,null,"TECNICO ESPECIALISTA DE LABORATORIO",null,31.7]
[null,null,null,null,null,"TECNICO ESPECIALISTA DE TELECOMUNICACIONES",null,31.7]
[null,null,null,null,null,"TECNICO ESPECIALISTA EN HOSTELERIA",null,31.7]
[null,null,null,null,null,"TEC. ESPEC. PREVENCIÓN DE RIESGOS LABORALES",null,31.7]
[null,null,null,null,null,"TEC. ESPEC. SERV. TEC. OBRAS, EQUIP. Y MANTENIMIENTO",null,32.049999999999997]
[null,null,null,null,null,"TEC. ESPECIALISTA ACTIVIDADES CULTURALES",null,31.7]
[null,null,null,null,null,"TEC. ESPECIALISTA DE ADMON. ( A EXT.)",null,31.7]
[null,null,null,null,null,"TECNICO ESPECIALISTA DE ALMACEN",null,32.049999999999997]
[null,null,null,null,null,"TECNICO ESPECIALISTA",null,31.7]
[null,null,null,null,null,"CONDUCTOR MECANICO",null,31.7]
[null,null,null,null,null,"INTERPRETE/INFORMADOR",null,31.7]
[null,null,null,null,null,"TEC. AUX. DE ADMINISTRACION ( A EXT.)",null,31.7]
[null,null,null,null,null,"TEC. AUX. SERV. TEC. OBRAS Y MANTENIMIENTO",null,32.049999999999997]
[null,null,null,null,null,"TECNICO AUXILIAR DE ALMACEN",null,32.049999999999997]
[null,null,null,null,null,"TECNICO AUXILIAR DE HOSTELERIA",null,31.7]
[null,null,null,null,null,"TECNICO AUXILIAR DE INSTALAC. DEPORTIVAS",null,32.049999999999997]
[null,null,null,null,null,"TECNICO AUXILIAR DE LABORATORIO",null,31.7]
[null,null,null,null,null,"TECNICO AUXILIAR DE LIMPIEZA",null,33.799999999999997]
[null,null,null,null,null,"TEC. AUX. DEL SERVICIO DE CONSERJERIA",null,32.049999999999997]

{"sheet":"CP8","index":8,"n_rows":56,"n_cols":10,"rows_kept":56,"cut":false,"hidden":true,"merged":[]}
["COD_PERSONAL","DESC_PERSONAL","COD_NATURALEZA","DESC_NATURALEZA","COD_CATEGORIA","DESC_CATEGORIA","TipoPer","% CUOTA PATRONAL","BaseCotizacionMínima",2022]
[2,"P.A.S.",3,"CONTRATO LABORAL","10003","TIT. SUPERIOR DE APOYO A LA DOCENCIA E INVESTIGACIÓN",8,31.9,4049.5233333333331,3948.3651426999995]
[2,"P.A.S.",3,"CONTRATO LABORAL","10005","TITULADO SUPERIOR DE PRENSA E INFORMACIÓN",8,31.9,3782.5091666666667,3695.4689479499993]
[2,"P.A.S.",3,"CONTRATO LABORAL","10006","TITULADO SUPERIOR DE DEPORTES",8,31.9,3782.5091666666667,3695.4689479499993]
[2,"P.A.S.",3,"CONTRATO LABORAL","10011","TITULADO SUPERIOR DE ACTIVIDADES CULTURALES",8,31.9,3782.5091666666667,3695.4689479499993]
[2,"P.A.S.",3,"CONTRATO LABORAL","10012","TITULADO SUPERIOR",8,31.9,3782.5091666666667,3695.4689479499993]
[2,"P.A.S.",3,"CONTRATO LABORAL","20003","TIT. GRADO MEDIO DE APOYO A LA DOCENCIA E INVESTIGACIÓN",8,31.9,3358.41,3270.9356922999996]
[2,"P.A.S.",3,"CONTRATO LABORAL","20005","TIT. GRADO MEDIO PREV. DE RIESGOS LABORALES",8,31.9,3350.2583333333332,3263.0978422999997]
[2,"P.A.S.",3,"CONTRATO LABORAL","20008","TITULADO DE GRADO MEDIO DE DEPORTES",8,31.9,3186.3624999999997,3105.516342299999]
[2,"P.A.S.",3,"CONTRATO LABORAL","20011","TRABAJADOR SOCIAL",8,31.9,3178.2108333333331,3097.6784922999996]
[2,"P.A.S.",3,"CONTRATO LABORAL","20014","TITULADO DE GRADO MEDIO",8,31.9,3178.2108333333331,3097.6784922999996]
[2,"P.A.S.",3,"CONTRATO LABORAL","30001","ENCARGADO DE EQUIPO LABORATORIO Y AUDIOVISUALES",8,31.9,2973.0191666666665,2889.0153922999998]
[2,"P.A.S.",3,"CONTRATO LABORAL","30002","ENCARGADO DE EQUIPO DE CONSERJERIA",8,32.25,2840.6108333333327,2761.7091922999998]
[null,"P.A.S.",3,"CONTRATO LABORAL","30002","ENCARGADO DE EQUIPO DE JARDINES",8,32.25,2973.0191666666665,2889.0153922999998]
[null,"P.A.S.",3,"CONTRATO LABORAL","30002","ENCARGADO DE EQUIPO DE MANTENIMIENTO",8,32.25,2973.0191666666665,2889.0153922999998]
[null,"P.A.S.",3,"CONTRATO LABORAL","30002","ENCARGADO DE EQUIPO DE INSTALACIONES DEPORTIVAS Y CONTROLADORES DE EDIFICIOS",8,32.25,2973.0191666666665,2889.0153922999998]
[2,"P.A.S.",3,"CONTRATO LABORAL","30003","TEC. ESPEC. SERV. TEC. OBRAS, EQUIP. Y MANTENIMIENTO",8,32.25,2782.6058333333331,2665.1122869999999]
[2,"P.A.S.",3,"CONTRATO LABORAL","30004","CONDUCTOR MECANICO",8,31.9,2737.7416666666663,2665.1122869999999]
[2,"P.A.S.",3,"CONTRATO LABORAL","30005","TECNICO ESPECIALISTA DE LABORATORIO",8,31.9,2721.4358333333334,2649.4357369999998]
[2,"P.A.S.",3,"CONTRATO LABORAL","30008","TECNICO ESPECIALISTA EN HOSTELERIA",8,31.9,2605.3416666666667,2538.3275694750309]
[2,"P.A.S.",3,"CONTRATO LABORAL","30010","TEC. ESPECIALISTA DE MEDIOS AUDIOVISUALES",8,31.9,2589.0358333333334,2522.6514427750271]
[2,"P.A.S.",3,"CONTRATO LABORAL","30012","DELINEANTE",8,31.9,2580.8841666666663,2514.8133794250275]
[2,"P.A.S.",3,"CONTRATO LABORAL","30013","INTERPRETE/INFORMADOR",8,31.9,2580.8841666666663,2514.8133794250275]
[2,"P.A.S.",3,"CONTRATO LABORAL","30014","TEC. ESPECIALISTA ACTIVIDADES CULTURALES",8,31.9,2580.8841666666663,2514.8133794250275]
[2,"P.A.S.",3,"CONTRATO LABORAL","30015","TECNICO ESPECIALISTA DE DEPORTES",8,32.25,2589.0358333333334,2522.6514427750271]
[2,"P.A.S.",3,"CONTRATO LABORAL","30016","TEC. ESPECIALISTA DE PRENSA E INFORMACION",8,31.9,2580.8841666666663,2514.8133794250275]
[2,"P.A.S.",3,"CONTRATO LABORAL","30017","TECNICO ESPECIALISTA DE ALMACEN",8,32.25,2589.0358333333334,2522.6514427750271]
[2,"P.A.S.",3,"CONTRATO LABORAL","30018","TECNICO ESPECIALISTA DE TELECOMUNICACIONES",8,31.9,2605.3416666666667,2538.3275694750273]
[2,"P.A.S.",3,"CONTRATO LABORAL","30019","TEC. ESPEC. BIBLIOTECA, ARCHIVO Y MUSEO",8,31.9,2589.0358333333334,2522.6514427750271]
[2,"P.A.S.",3,"CONTRATO LABORAL","30021","TEC. ESPECIALISTA DE ADMON. ( A EXT.)",8,31.9,2580.8841666666663,2514.8133794250275]
[2,"P.A.S.",3,"CONTRATO LABORAL","30022","TEC. ESPEC. PREVENCIÓN DE RIESGOS LABORALES",8,31.9,2713.2841666666664,2642.1117959750277]
[2,"P.A.S.",3,"CONTRATO LABORAL","30023","TECNICO ESPECIALISTA",8,31.9,2580.8841666666663,2514.8133794250275]
[2,"P.A.S.",3,"CONTRATO LABORAL","40001","TEC. AUX. SERV. TEC. OBRAS Y MANTENIMIENTO",8,32.25,2208.9691666666668,2152.5981703279999]
[2,"P.A.S.",3,"CONTRATO LABORAL","40002","TECNICO AUXILIAR DE SEGURIDAD  (A EXT. )",8,32.25,2208.9691666666668,2152.5981703279999]
[2,"P.A.S.",3,"CONTRATO LABORAL","40004","TECNICO AUXILIAR DE LABORATORIO",8,31.9,2192.6633333333334,2136.9220436280002]
[2,"P.A.S.",3,"CONTRATO LABORAL","40005","MODELO EN VIVO",8,31.9,2192.6633333333334,3276.5024652524999]
[2,"P.A.S.",3,"CONTRATO LABORAL","40007","TECNICO AUXILIAR DE HOSTELERIA",8,31.9,2208.9691666666668,2152.5981703279999]
[2,"P.A.S.",3,"CONTRATO LABORAL","40009","TEC. AUX. DEL SERVICIO DE CONSERJERIA",8,32.25,2208.9691666666668,2152.5981703279999]
[2,"P.A.S.",3,"CONTRATO LABORAL","40012","TECNICO AUXILIAR DE INSTALAC. DEPORTIVAS",8,32.25,2208.9691666666668,2152.5981703279999]
[2,"P.A.S.",3,"CONTRATO LABORAL","40013","TECNICO AUXILIAR DE ALMACEN",8,32.25,2192.6633333333334,2136.9220436280002]
[2,"P.A.S.",3,"CONTRATO LABORAL","40015","TEC. AUX. DE ADMINISTRACION ( A EXT.)",8,31.9,2184.5116666666668,2129.0839802780001]
[2,"P.A.S.",3,"CONTRATO LABORAL","40017","TECNICO AUXILIAR DE LIMPIEZA",8,34,2208.9691666666668,2152.5981703279999]
[2,"P.A.S.",3,"CONTRATO LABORAL","PCON1","PERSONAL CON CARGO A CONVENIOS GRUPO 1",8,33.1,null,0]
[2,"P.A.S.",3,"CONTRATO LABORAL","PCON2","PERSONAL CON CARGO A CONVENIOS GRUPO 2",8,33.1,null,0]
[2,"P.A.S.",3,"CONTRATO LABORAL","PCON3","PERSONAL CON CARGO A CONVENIOS GRUPO 3",8,33.1,null,0]
[2,"P.A.S.",3,"CONTRATO LABORAL","PPRO1","PERSONAL DE PROYECTOS GRUPO 1",8,33.1,null,0]
[2,"P.A.S.",3,"CONTRATO LABORAL","PPRO2","PERSONAL DE PROYECTOS GRUPO 2",8,33.1,null,0]
[2,"P.A.S.",3,"CONTRATO LABORAL","TO1IA","PERSONAL APOYO TÉCNICO A LA INVESTIGACIÓN(ADMON)",8,33.1,null,0]
[2,"P.A.S.",3,"CONTRATO LABORAL","T01I","PERSONAL APOYO TÉCNICO A LA INVESTIGACIÓN",8,33.1,null,0]
[2,"P.A.S.",3,"CONTRATO LABORAL","T01IA","PERSONAL APOYO TÉCNICO INVESTIGACIÓN (ADMINISTRACIÓN)",8,33.1,null,0]
[2,"P.A.S.",3,"CONTRATO LABORAL","T01IL","PERSONAL APOYO TÉCNICO INVESTIGACIÓN (LABORATORIO)",8,33.1,null,0]
[2,"P.A.S.",3,"CONTRATO LABORAL","T02IL","PERSONAL APOYO TÉCNICO INVESTIGACIÓN (LABORATORIO)",8,33.1,null,0]
[2,"P.A.S.",3,"CONTRATO LABORAL","T03D","PERS.COLABORAC.SOCIAL(R.D.1445/82 DE 25/6)",8,2,null,0]
[2,"P.A.S.",3,"CONTRATO LABORAL","T03IA","PERSONAL APOYO TÉCNICO INVESTIGACIÓN (ADMINISTRACIÓN)",8,33.1,null,0]
[2,"P.A.S.",3,"CONTRATO LABORAL","T03IL","PERSONAL APOYO TÉCNICO INVESTIGACIÓN (LABORATORIO)",8,33.1,null,0]
[2,"P.A.S.",3,"CONTRATO LABORAL","T04IA","PERSONAL APOYO TÉCNICO INVESTIGACIÓN (ADMINISTRACIÓN)",8,33.1,null,0]

{"sheet":"CP9","index":9,"n_rows":3,"n_cols":11,"rows_kept":3,"cut":false,"hidden":true,"merged":[]}
["COD_PERSONAL","DESC_PERSONAL","COD_NATURALEZA","DESC_NATURALEZA","COD_CATEGORIA","DESC_CATEGORIA","TipoPer","% CUOTA PATRONAL","BaseCotizacionMínima",2022,"Actualizado multiplicando por 1,02"]
[2,"P.A.S.",5,"PERSONAL EVENTUAL","N1929","PERSONAL EVENTUAL",8,26.2,{"$f":"J2*1.025","v":2749.2101970449994},2682.1562897999997,"Nómina con trienios"]
[null,null,null,null,null,null,null,null,{"$f":"J3*1.025","v":4164.4767822449994},4062.9041777999996,"Nómina con trienios"]

{"sheet":"CP10","index":10,"n_rows":44,"n_cols":10,"rows_kept":44,"cut":false,"hidden":true,"merged":[]}
["COD_PERSONAL","DESC_PERSONAL","COD_NATURALEZA","DESC_NATURALEZA","COD_CATEGORIA","DESC_CATEGORIA","TipoPer","% CUOTA PATRONAL","BaseCotizacionMínima",2022]
[null,"DOCENTE",1,"FUNCIONARIO DE CARRERA","A0500","CATEDRÁTICO DE UNIVERSIDAD",1,23.27,{"$f":"'CP1'!I2","v":5148.958333333333},4370.1933115999991]
[null,"DOCENTE",1,"FUNCIONARIO DE CARRERA","A0504","PROFESOR TITULAR DE UNIVERSIDAD",1,23.27,{"$f":"'CP1'!I3","v":3943.311666666667},3521.7681949999997]
[1,"DOCENTE",1,"FUNCIONARIO DE CARRERA","A0505","CATEDRÁTICO DE ESCUELA UNIVERSITARIA",1,23.27,{"$f":"'CP1'!I4","v":3943.311666666667},3521.7681949999997]
[1,"DOCENTE",1,"FUNCIONARIO DE CARRERA","A0506","PROFESOR TITULAR DE ESCUELA UNIVERSITARIA",1,23.27,{"$f":"'CP1'!I5","v":3436.9883333333332},3118.6178053999997]
[null,"DOCENTE",1,"FUNCIONARIO DE CARRERA","A48EC","PROFESOR AGREGADO DE BACHILLERATO",1,23.27,{"$f":"J6*1.025","v":3375.6260072399996},3293.2936655999997]
[null,"DOCENTE",1,"FUNCIONARIO DE CARRERA","A24EC","AYUDANTE TÉCNICO DE ESCUELA ARTES APLIC. Y OFICIOS ARTÍSTICOS",1,23.27,{"$f":"J7*1.025","v":2946.2778407399996},2874.4174055999997]
[null,"DOCENTE",1,"FUNCIONARIO DE CARRERA","A33EC","PROFESOR DE ESCUELA DE MAESTRÍA INDUSTRIAL",1,23.27,{"$f":"J8*1.025","v":3578.6837787124991},3491.3988084999996]
[null,"DOCENTE",1,"FUNCIONARIO DE CARRERA","A35EC","PROFESOR TÉCNICO DE F.P.",1,23.27,{"$f":"J9*1.025","v":2946.2778407399996},2874.4174055999997]
[]
[]
[]
[]
[]
[]
[]
[]
[]
[]
[]
[]
[]
[]
[]
[]
[]
[]
[]
[]
[]
[]
[]
[]
[]
[]
[]
[]
[]
[]
[]
[]
[]
[]
[null,null,null,"Granada",null,null,"2021-02-05"]

{"sheet":"CDestino","index":11,"n_rows":44,"n_cols":11,"rows_kept":44,"cut":false,"hidden":true,"merged":[]}
["C. Destino","C.D. MENSUAL","Calidad a 4.5 tramos","Total Prorrateado en 12",2022,null,"C.Específico","C.E. MENSUAL","C.E. ANUAL (x14)","Total Prorrateado en 12",2022]
[30,1125.3500000000001,0,1081.9854,"Actualizado multiplciando por 1,02",null,"g",4284.3,59980.200000000004,4284.3]
[29,1009.38,6449.3255946000008,1507.93299955,null,null,"1a",2231.89,31246.46,2231.89]
[28,966.96,6449.3255946000008,1467.1533995500001,null,null,"2a",1476,20664,1476]
[27,924.48,5529.8150154000004,1349.6765179500001,null,null,"2b",897.07,12558.980000000001,897.07]
[26,811.07999999999993,5529.8150154000004,1240.64871795,null,null,"2c",1072.49,15014.86,1072.49]
[25,719.6,4487.6158883999997,1065.8441907000001,null,null,"3a",1303.0899999999999,18243.259999999998,1303.0899999999999]
[24,677.15,4487.6158883999997,1025.0237907000001,null,null,"3b",1195.04,16730.559999999998,1195.0399999999997]
[23,634.75,4032.9035808000003,946.37189840000008,null,null,"3c",1070.97,14993.58,1070.97]
[22,592.27,4032.9035808000003,905.52089839999996,null,null,"3d",887.04,12418.56,887.04]
[21,549.88,4032.9035808000003,864.77189840000005,null,null,"3e",880.05,12320.699999999999,880.05]
[20,510.78999999999996,3515.3083752000007,784.05196460000002,null,null,"3f",837.59,11726.26,837.59]
[19,484.72,3515.3083752000007,758.99056460000008,null,null,"3g",739.57,10353.980000000001,739.57]
[18,458.64000000000004,3238.5104142000005,710.8422678500001,null,null,"3h",732.63,10256.82,732.63]
[17,432.53999999999996,3238.5104142000005,685.75026785000011,null,null,"3i",966.5,13531,966.5]
[16,406.52,3238.5104142000005,660.72966785000006,null,null,"4a",935.91,13102.74,935.91]
[15,380.39000000000004,3238.5104142000005,635.60706785000002,null,null,"4b",876.2,12266.800000000001,876.2]
[null,null,null,null,null,null,"4b1",856.24,11987.36,856.24]
[null,null,null,null,null,null,"4b2",797.01,11158.14,797.01]
[null,null,null,null,null,null,"4c",762.71,10677.94,762.71]
[null,null,null,null,null,null,"5a",895.78,12540.92,895.78]
[null,null,null,null,null,null,"5b",850.25,11903.5,850.25]
[null,null,null,null,null,null,"5c",824.22,11539.08,824.22]
[null,null,null,null,null,null,"5d",803.25,11245.5,803.25]
[null,null,null,null,null,null,"5e",796.28,11147.92,796.28]
[null,null,null,null,null,null,"5f",790.24,11063.36,790.24]
[null,null,null,null,null,null,"5g",782.3,10952.199999999999,782.3]
[null,null,null,null,null,null,"5h",775.32,10854.480000000001,775.32]
[null,null,null,null,null,null,"5i",736.78,10314.92,736.78]
[null,null,null,null,null,null,"5j",722.8,10119.199999999999,722.8]
[null,null,null,null,null,null,"5k",715.8,10021.199999999999,715.8]
[null,null,null,null,null,null,"5l",696.72,9754.08,696.72]
[null,null,null,null,null,null,"5m",689.73,9656.2200000000012,689.73000000000013]
[null,null,null,null,null,null,"6a",613.5,8589,613.5]
[null,null,null,null,null,null,"7a",639.59,8954.26,639.59]
[null,null,null,null,null,null,"7b",575.22,8053.08,575.22]
[null,null,null,null,null,null,"8a",715.32,10014.480000000001,715.32]
[null,null,null,null,null,null,"8b",629.75,8816.5,629.75]
[]
[]
[]
[]
[]
[null,null,null,"Granada"]

{"sheet":"CuotaPatronal","index":12,"n_rows":154,"n_cols":8,"rows_kept":154,"cut":false,"hidden":true,"merged":[]}
["COD_PERSONAL","DESC_PERSONAL","COD_NATURALEZA","DESC_NATURALEZA","COD_CATEGORIA","DESC_CATEGORIA","TipoPer","% CUOTA PATRONAL"]
[1,"DOCENTE",0,"SIN RELACIÓN JURÍDICA CON LA UNIV","CEUG","COLABORADOR EXTRAORDINARIO",null,0]
[1,"DOCENTE",0,"SIN RELACIÓN JURÍDICA CON LA UNIV","PEUGR","PROFESOR EMÉRITO",null,0]
[1,"DOCENTE",0,"SIN RELACIÓN JURÍDICA CON LA UNIV","UGVLC","PROFESOR VISITANTE LABORAL",null,0]
[null,"DOCENTE",1,"FUNCIONARIO DE CARRERA","A0500","CATEDRÁTICO DE UNIVERSIDAD ANTERIOR 31/12/2010",1,0]
[null,"DOCENTE",1,"FUNCIONARIO DE CARRERA","A24EC","AYUDANTE TÉCNICO DE ESCUELA ARTES APLIC. Y OFICIOS ARTÍSTICOS ANTERIOR 31/12/2010",1,0]
[null,"DOCENTE",1,"FUNCIONARIO DE CARRERA","A33EC","PROFESOR DE ESCUELA DE MAESTRÍA INDUSTRIAL ANTERIOR 31/12/2010",1,0]
[null,"DOCENTE",1,"FUNCIONARIO DE CARRERA","A35EC","PROFESOR TÉCNICO DE F.P. ANTERIOR 31/12/2010",1,0]
[null,"DOCENTE",1,"FUNCIONARIO DE CARRERA","A48EC","PROFESOR AGREGADO DE BACHILLERATO ANTERIOR 31/12/2010",1,0]
[1,"DOCENTE",1,"FUNCIONARIO DE CARRERA","A0505","CATEDRÁTICO DE ESCUELA UNIVERSITARIA POSTERIOR 01/01/2011",1,0]
[1,"DOCENTE",1,"FUNCIONARIO DE CARRERA","A0506","PROFESOR TITULAR DE ESCUELA UNIVERSITARIA POSTERIOR 01/01/2011",1,0]
[null,"DOCENTE",1,"FUNCIONARIO DE CARRERA","A0500","CATEDRÁTICO DE UNIVERSIDAD POSTERIOR 01/01/2011",1,22.65]
[null,"DOCENTE",1,"FUNCIONARIO DE CARRERA","A0504","PROFESOR TITULAR DE UNIVERSIDAD POSTERIOR 01/01/2011",1,22.65]
[1,"DOCENTE",1,"FUNCIONARIO DE CARRERA","A24EC","AYUDANTE TÉCNICO DE ESCUELA ARTES APLIC. Y OFICIOS ARTÍSTICOS POSTERIOR 01/01/2011",1,22.65]
[1,"DOCENTE",1,"FUNCIONARIO DE CARRERA","A33EC","PROFESOR DE ESCUELA DE MAESTRÍA INDUSTRIAL POSTERIOR 01/01/2011",1,22.65]
[1,"DOCENTE",1,"FUNCIONARIO DE CARRERA","A35EC","PROFESOR TÉCNICO DE F.P. POSTERIOR 01/01/2011",1,22.65]
[1,"DOCENTE",1,"FUNCIONARIO DE CARRERA","A48EC","PROFESOR AGREGADO DE BACHILLERATO POSTERIOR 01/01/2011",1,22.65]
[1,"DOCENTE",2,"FUNCIONARIO DE EMPLEO INTERINO","I0504","PROFESOR TITULAR INTERINO DE UNIVERSIDAD TIEMPO COMPLETO",2,30.7]
[1,"DOCENTE",2,"FUNCIONARIO DE EMPLEO INTERINO","I0506","PROFESOR TITULAR INTERINO DE ESCUELA UNIVERSITARIA TIEMPO COMPLETO",2,30.7]
[1,"DOCENTE",3,"CONTRATO LABORAL","PEUEC","PROFESOR DE LA E. U. DE  ENFERMERÍA DE CEUTA \"A  EXTINGUIR\" ",3,30.9]
[null,"DOCENTE",3,"CONTRATO LABORAL","PEUEC","PROFESOR DE LA E. U. DE  ENFERMERÍA DE CEUTA \"A  EXTINGUIR\" TIEMPO PARCIAL",3,32.1]
[1,"DOCENTE",3,"CONTRATO LABORAL","T43L","PROFESOR LABORAL PERMANENTE",3,30.9]
[1,"DOCENTE",3,"CONTRATO LABORAL","T74C","PROFESOR ASOCIADO EXTRANJERO",3,30.7]
[1,"DOCENTE",3,"CONTRATO LABORAL","T80C","PROFESOR DE EDUCACION FÍSICA * A EXTINGUIR",3,30.9]
[1,"DOCENTE",3,"CONTRATO LABORAL","UGADR","PROFESOR AYUDANTE DOCTOR",3,30.9]
[1,"DOCENTE",3,"CONTRATO LABORAL","UGA1L","PROFESOR ASOCIADO LABORAL",3,32.1]
[1,"DOCENTE",3,"CONTRATO LABORAL","UGCDI","PROFESOR CONTRATADO DOCTOR INTERINO",3,30.9]
[1,"DOCENTE",3,"CONTRATO LABORAL","UGCDR","PROFESOR CONTRATADO DOCTOR",3,30.9]
[1,"DOCENTE",3,"CONTRATO LABORAL","UGCLB","PROFESOR COLABORADOR",3,30.9]
[1,"DOCENTE",3,"CONTRATO LABORAL","UGCSL","PROFESOR ASOCIADO CIENCIAS SALUD",3,32.1]
[1,"DOCENTE",3,"CONTRATO LABORAL","UGISD","PROFESOR SUSTITUTO INTERINO",3,30.9]
[1,"DOCENTE",3,"CONTRATO LABORAL","UGISP","PROFESOR SUSTITUTO INTERINO TIEMPO PARCIAL",3,30.9]
[1,"DOCENTE",3,"CONTRATO LABORAL","UGVLC","PROFESOR VISITANTE LABORAL",3,32.1]
[null,"DOCENTE",3,"CONTRATO LABORAL",null,"PROFESOR VISITANTE LABORAL- TIEMPO PARCIAL",3,32.1]
[2,"P.A.S.",1,"FUNCIONARIO DE CARRERA","A7077","ESCALA DE GESTION UNIVERSIDAD DE CORDOBA",6,25.2]
[2,"P.A.S.",1,"FUNCIONARIO DE CARRERA","A7080","ESCALA TECNICA DE LA UNIVERSIDAD DE GRANADA",6,25.2]
[2,"P.A.S.",1,"FUNCIONARIO DE CARRERA","A7081","ESCALA FACULTATIVA ARCHIVOS,BIBLIT.Y M.UNIVERSIDAD GRANADA",6,25.2]
[2,"P.A.S.",1,"FUNCIONARIO DE CARRERA","A7082","ESCALA DE GESTION DE LA UNIVERSIDAD DE GRANADA",6,25.2]
[2,"P.A.S.",1,"FUNCIONARIO DE CARRERA","A7083","ESCALA AYUDANTES ARCHIVOS,BIBL.Y M. UNIVERSIDAD GRANADA",6,25.2]
[2,"P.A.S.",1,"FUNCIONARIO DE CARRERA","A7084","ESCALA ADMINISTRATIVA UNIVERSIDAD DE GRANADA",6,25.2]
[2,"P.A.S.",1,"FUNCIONARIO DE CARRERA","A7094","ESCALA ADMINISTRATIVA DE LA UNIV.DE MALAGA",6,25.2]
[2,"P.A.S.",1,"FUNCIONARIO DE CARRERA","A7105","ESCALA ADMINISTRATIVA UNIVERSIDAD DE SEVILLA",6,25.2]
[2,"P.A.S.",1,"FUNCIONARIO DE CARRERA","A7127","ESC.ADMINISTRATIVA UNIVERSIDAD DE HUELVA",6,25.2]
[2,"P.A.S.",1,"FUNCIONARIO DE CARRERA","A7346","ESCALA ADMINISTRATIVA DE LA UNIVERSIDAD DE TARRAGONA",6,25.2]
[2,"P.A.S.",1,"FUNCIONARIO DE CARRERA","A7487","ESCALA TECNICA GESTION UNV.GRANADA(ESP. INFORMATICA)",6,25.2]
[2,"P.A.S.",1,"FUNCIONARIO DE CARRERA","A7488","ESCALA DE GESTION UNIVERSIDAD GRANADA (ESP.INFORMATICA)",6,25.2]
[2,"P.A.S.",1,"FUNCIONARIO DE CARRERA","A7489","ESCALA ADMINISTRATIVA UNV. GRANADA (ESP. INFORMATICA)",6,25.2]
[2,"P.A.S.",1,"FUNCIONARIO DE CARRERA","A7490","ESCALA DE GESTION (ESPECIALIDAD INGENIERO TECNICO INDRUSTRIAL)",6,25.2]
[2,"P.A.S.",1,"FUNCIONARIO DE CARRERA","A7505","ESC.AYUDANTES ARCHIV.BLIBLIOT.UNI. JAEN",6,25.2]
[2,"P.A.S.",1,"FUNCIONARIO DE CARRERA","A7507","ESCALA TECNICA DE ADMINISTRACION DE LA UNIVERSIDAD DE JAEN",6,25.2]
[2,"P.A.S.",1,"FUNCIONARIO DE CARRERA","A7508","ESCALA FACULTATIVA ARCH,BIBLIO, Y MUSEOS U.JAEN",6,25.2]
[2,"P.A.S.",1,"FUNCIONARIO DE CARRERA","A7510","ESCALA DE GESTIÓN DE LA UNIVERSIDAD DE JAÉN",6,25.2]
[2,"P.A.S.",1,"FUNCIONARIO DE CARRERA","A7511","PROGRAMADORES INFORMATICOS UJA",6,25.2]
[2,"P.A.S.",1,"FUNCIONARIO DE CARRERA","A7512","ESC.ADMINISTRATIVA UNIVERSIDAD DE JAEN",6,25.2]
[2,"P.A.S.",1,"FUNCIONARIO DE CARRERA","A7520","ESCALA AYUDANTES DE ARCH.,BIBL.Y MUS.DE LA UNIV.ALMERIA",6,25.2]
[2,"P.A.S.",1,"FUNCIONARIO DE CARRERA","A7521","ESCALA ADMINISTRATIVA DE LA UNIVERSIDAD DE ALMERIA",6,25.2]
[2,"P.A.S.",1,"FUNCIONARIO DE CARRERA","A7744","ESCALA TECNICA DE ADMINISTRACION U. DE GRANADA",6,25.2]
[2,"P.A.S.",1,"FUNCIONARIO DE CARRERA","A7745","ESCALA TECNICA DE INFORMATICA UNIV. GRANADA",6,25.2]
[2,"P.A.S.",1,"FUNCIONARIO DE CARRERA","A7746","ESCALA TECNICA PROFESIONAL UNIVERSIDAD DE GRANADA",6,25.2]
[2,"P.A.S.",1,"FUNCIONARIO DE CARRERA","A7747","ESCALA GESTION ADMINISTRATIVA U. DE GRANADA",6,25.2]
[2,"P.A.S.",1,"FUNCIONARIO DE CARRERA","A7748","ESCALA GESTION INFORMATICA UNIVERSIDAD DE GRANADA",6,25.2]
[2,"P.A.S.",1,"FUNCIONARIO DE CARRERA","A7749","ESCALA GESTION PROFESIONAL UNIVERSIDAD DE GRANADA",6,25.2]
[2,"P.A.S.",1,"FUNCIONARIO DE CARRERA","G7042","ESCALA ADMINISTRATIVA UNIVERSIDAD VALENCIA",6,25.2]
[2,"P.A.S.",2,"FUNCIONARIO DE EMPLEO INTERINO","I7083","E. AYUD. ARCHIVOS BIBLIOT. Y MUSEOS U. GRANADA INTERINO",7,30.7]
[2,"P.A.S.",2,"FUNCIONARIO DE EMPLEO INTERINO","I7086","ESCALA AUXILIAR U.GRANADA INTERINO",7,30.7]
[2,"P.A.S.",2,"FUNCIONARIO DE EMPLEO INTERINO","I7488","ESCALA INTERINA GESTION INFORMATICA. UNIVERSIDAD DE GRANADA",7,30.7]
[2,"P.A.S.",2,"FUNCIONARIO DE EMPLEO INTERINO","I7490","ESCALA GESTION INTERINA(ESP. INGENIERO TECNICO INDUSTRIAL",7,30.7]
[2,"P.A.S.",2,"FUNCIONARIO DE EMPLEO INTERINO","I7746","ESCALA TECNICA PROFESIONAL INTERINA UNIVERSIDAD DE GRANADA",7,30.7]
[2,"P.A.S.",2,"FUNCIONARIO DE EMPLEO INTERINO","I7749","ESCALA GESTION PROFESIONAL INTERINA UNIVERSIDAD DE GRANADA",7,30.7]
[2,"P.A.S.",3,"CONTRATO LABORAL","PCON1","PERSONAL CON CARGO A CONVENIOS GRUPO 1",8,32.1]
[2,"P.A.S.",3,"CONTRATO LABORAL","PCON2","PERSONAL CON CARGO A CONVENIOS GRUPO 2",8,32.1]
[2,"P.A.S.",3,"CONTRATO LABORAL","PCON3","PERSONAL CON CARGO A CONVENIOS GRUPO 3",8,32.1]
[2,"P.A.S.",3,"CONTRATO LABORAL","PPRO1","PERSONAL DE PROYECTOS GRUPO 1",8,32.1]
[2,"P.A.S.",3,"CONTRATO LABORAL","PPRO2","PERSONAL DE PROYECTOS GRUPO 2",8,32.1]
[2,"P.A.S.",3,"CONTRATO LABORAL","TO1IA","PERSONAL APOYO TÉCNICO A LA INVESTIGACIÓN(ADMON)",8,32.1]
[2,"P.A.S.",3,"CONTRATO LABORAL","T01I","PERSONAL APOYO TÉCNICO A LA INVESTIGACIÓN",8,32.1]
[2,"P.A.S.",3,"CONTRATO LABORAL","T01IA","PERSONAL APOYO TÉCNICO INVESTIGACIÓN (ADMINISTRACIÓN)",8,32.1]
[2,"P.A.S.",3,"CONTRATO LABORAL","T01IL","PERSONAL APOYO TÉCNICO INVESTIGACIÓN (LABORATORIO)",8,32.1]
[2,"P.A.S.",3,"CONTRATO LABORAL","T02IL","PERSONAL APOYO TÉCNICO INVESTIGACIÓN (LABORATORIO)",8,32.1]
[2,"P.A.S.",3,"CONTRATO LABORAL","T03D","PERS.COLABORAC.SOCIAL(R.D.1445/82 DE 25/6)",8,1]
[2,"P.A.S.",3,"CONTRATO LABORAL","T03IA","PERSONAL APOYO TÉCNICO INVESTIGACIÓN (ADMINISTRACIÓN)",8,32.1]
[2,"P.A.S.",3,"CONTRATO LABORAL","T03IL","PERSONAL APOYO TÉCNICO INVESTIGACIÓN (LABORATORIO)",8,32.1]
[2,"P.A.S.",3,"CONTRATO LABORAL","T04IA","PERSONAL APOYO TÉCNICO INVESTIGACIÓN (ADMINISTRACIÓN)",8,32.1]
[2,"P.A.S.",3,"CONTRATO LABORAL","10003","TIT. SUPERIOR DE APOYO A LA DOCENCIA E INVESTIGACIÓN",8,30.9]
[2,"P.A.S.",3,"CONTRATO LABORAL","10005","TITULADO SUPERIOR DE PRENSA E INFORMACIÓN",8,30.9]
[2,"P.A.S.",3,"CONTRATO LABORAL","10006","TITULADO SUPERIOR DE DEPORTES",8,30.9]
[2,"P.A.S.",3,"CONTRATO LABORAL","10011","TITULADO SUPERIOR DE ACTIVIDADES CULTURALES",8,30.9]
[2,"P.A.S.",3,"CONTRATO LABORAL","10012","TITULADO SUPERIOR",8,30.9]
[2,"P.A.S.",3,"CONTRATO LABORAL","20003","TIT. GRADO MEDIO DE APOYO A LA DOCENCIA E INVESTIGACIÓN",8,30.9]
[2,"P.A.S.",3,"CONTRATO LABORAL","20005","TIT. GRADO MEDIO PREV. DE RIESGOS LABORALES",8,30.9]
[2,"P.A.S.",3,"CONTRATO LABORAL","20008","TITULADO DE GRADO MEDIO DE DEPORTES",8,30.9]
[2,"P.A.S.",3,"CONTRATO LABORAL","20011","TRABAJADOR SOCIAL",8,30.9]
[2,"P.A.S.",3,"CONTRATO LABORAL","20014","TITULADO DE GRADO MEDIO",8,30.9]
[2,"P.A.S.",3,"CONTRATO LABORAL","30001","ENCARGADO DE EQUIPO LABORATORIO Y AUDIOVISUALES",8,30.9]
[2,"P.A.S.",3,"CONTRATO LABORAL","30002","ENCARGADO DE EQUIPO DE CONSERJERIA",8,31.75]
[null,"P.A.S.",3,"CONTRATO LABORAL","30002","ENCARGADO DE EQUIPO DE JARDINES",8,31.75]
[null,"P.A.S.",3,"CONTRATO LABORAL","30002","ENCARGADO DE EQUIPO DE MANTENIMIENTO",8,31.75]
[null,"P.A.S.",3,"CONTRATO LABORAL","30002","ENCARGADO DE EQUIPO DE INSTALACIONES DEPORTIVAS Y CONTROLADORES DE EDIFICIOS",8,31.75]
[2,"P.A.S.",3,"CONTRATO LABORAL","30003","TEC. ESPEC. SERV. TEC. OBRAS, EQUIP. Y MANTENIMIENTO",8,31.75]
[2,"P.A.S.",3,"CONTRATO LABORAL","30004","CONDUCTOR MECANICO",8,30.9]
[2,"P.A.S.",3,"CONTRATO LABORAL","30005","TECNICO ESPECIALISTA DE LABORATORIO",8,30.9]
[2,"P.A.S.",3,"CONTRATO LABORAL","30008","TECNICO ESPECIALISTA EN HOSTELERIA",8,31.15]
[2,"P.A.S.",3,"CONTRATO LABORAL","30010","TEC. ESPECIALISTA DE MEDIOS AUDIOVISUALES",8,30.9]
[2,"P.A.S.",3,"CONTRATO LABORAL","30012","DELINEANTE",8,30.9]
[2,"P.A.S.",3,"CONTRATO LABORAL","30013","INTERPRETE/INFORMADOR",8,30.9]
[2,"P.A.S.",3,"CONTRATO LABORAL","30014","TEC. ESPECIALISTA ACTIVIDADES CULTURALES",8,30.9]
[2,"P.A.S.",3,"CONTRATO LABORAL","30015","TECNICO ESPECIALISTA DE DEPORTES",8,31.75]
[2,"P.A.S.",3,"CONTRATO LABORAL","30016","TEC. ESPECIALISTA DE PRENSA E INFORMACION",8,30.9]
[2,"P.A.S.",3,"CONTRATO LABORAL","30017","TECNICO ESPECIALISTA DE ALMACEN",8,31.75]
[2,"P.A.S.",3,"CONTRATO LABORAL","30018","TECNICO ESPECIALISTA DE TELECOMUNICACIONES",8,30.9]
[2,"P.A.S.",3,"CONTRATO LABORAL","30019","TEC. ESPEC. BIBLIOTECA, ARCHIVO Y MUSEO",8,30.9]
[2,"P.A.S.",3,"CONTRATO LABORAL","30021","TEC. ESPECIALISTA DE ADMON. ( A EXT.)",8,30.9]
[2,"P.A.S.",3,"CONTRATO LABORAL","30022","TEC. ESPEC. PREVENCIÓN DE RIESGOS LABORALES",8,30.9]
[2,"P.A.S.",3,"CONTRATO LABORAL","30023","TECNICO ESPECIALISTA",8,30.9]
[2,"P.A.S.",3,"CONTRATO LABORAL","40001","TEC. AUX. SERV. TEC. OBRAS Y MANTENIMIENTO",8,31.75]
[2,"P.A.S.",3,"CONTRATO LABORAL","40002","TECNICO AUXILIAR DE SEGURIDAD  (A EXT. )",8,31.75]
[2,"P.A.S.",3,"CONTRATO LABORAL","40004","TECNICO AUXILIAR DE LABORATORIO",8,30.9]
[2,"P.A.S.",3,"CONTRATO LABORAL","40005","MODELO EN VIVO",8,30.9]
[2,"P.A.S.",3,"CONTRATO LABORAL","40007","TECNICO AUXILIAR DE HOSTELERIA",8,31.15]
[2,"P.A.S.",3,"CONTRATO LABORAL","40009","TEC. AUX. DEL SERVICIO DE CONSERJERIA",8,31.75]
[2,"P.A.S.",3,"CONTRATO LABORAL","40012","TECNICO AUXILIAR DE INSTALAC. DEPORTIVAS",8,31.75]
[2,"P.A.S.",3,"CONTRATO LABORAL","40013","TECNICO AUXILIAR DE ALMACEN",8,31.75]
[2,"P.A.S.",3,"CONTRATO LABORAL","40015","TEC. AUX. DE ADMINISTRACION ( A EXT.)",8,30.9]
[2,"P.A.S.",3,"CONTRATO LABORAL","40017","TECNICO AUXILIAR DE LIMPIEZA",8,33.5]
[2,"P.A.S.",5,"PERSONAL EVENTUAL","N1929","PERSONAL EVENTUAL",8,25.2]
[6,"INVESTIGADOR CONTRATADO",3,"CONTRATO LABORAL","APPP","AYUDA PUENTE DOCTORES PLAN PROPIO",4,32.1]
[6,"INVESTIGADOR CONTRATADO",3,"CONTRATO LABORAL","CDPE","CONTRATOS DOCTORES PROYECTOS DE EXCELENCIA",4,32.1]
[6,"INVESTIGADOR CONTRATADO",3,"CONTRATO LABORAL","CIPR","CONTRATO INVESTIGADOR CON CARGO A PROYECTO",4,32.1]
[6,"INVESTIGADOR CONTRATADO",3,"CONTRATO LABORAL","FPDID","INVESTIGADOR DOCTOR JUNTA ANDALUCIA AREAS DEFICITARIAS",4,32.1]
[6,"INVESTIGADOR CONTRATADO",3,"CONTRATO LABORAL","FPU11","CONTRATOS  PREDOCTORALES LEY 14/2011 FPU",4,25.02]
[6,"INVESTIGADOR CONTRATADO",3,"CONTRATO LABORAL","IPPP","AYUDAS A LA INVESTIGACION POSDOCTORAL PLAN PROPIO",4,32.1]
[6,"INVESTIGADOR CONTRATADO",3,"CONTRATO LABORAL","PDPP","PROGRAMA PERFECCIONAMIENTO DOCTORES PLAN PROPIO",4,32.1]
[6,"INVESTIGADOR CONTRATADO",3,"CONTRATO LABORAL","PIJC","PROGRAMA INVESTIGACION JUAN DE LA CIERVA",4,32.1]
[6,"INVESTIGADOR CONTRATADO",3,"CONTRATO LABORAL","PIPRI","PERSONAL INVESTIGADOR DE PROYECTOS INTERNACIONALES",4,32.1]
[6,"INVESTIGADOR CONTRATADO",3,"CONTRATO LABORAL","PIRC","PROGRAMA INVESTIGACION RAMON Y CAJAL",4,30.9]
[6,"INVESTIGADOR CONTRATADO",3,"CONTRATO LABORAL","POOI","INVESTIGADOR DOCTOR DE OTRAS INSTITUCIONES",4,32.1]
[6,"INVESTIGADOR CONTRATADO",3,"CONTRATO LABORAL","PPJID","PROGRAMA PROYECTOS JÓVENES INVESTIGADORES DOCTORES",4,32.1]
[6,"INVESTIGADOR CONTRATADO",3,"CONTRATO LABORAL","PRPP","PROGRAMA DE REINCORPORACION DEL PLAN PROPIO",4,32.1]
[6,"INVESTIGADOR CONTRATADO",3,"CONTRATO LABORAL","TALEN"," POSDOCTORAL TALENTIA JUNTA ANDALUCIA",4,32.1]
[6,"INVESTIGADOR CONTRATADO",6,"PERSONAL DEL CONSEJO SOCIAL","APPP","AYUDA PUENTE DOCTORES PLAN PROPIO",4,32.1]
[6,"INVESTIGADOR CONTRATADO",9,"CONTRATADOS INVESTIGACION","CDPE","CONTRATOS DOCTORES PROYECTOS DE EXCELENCIA",4,32.1]
[6,"INVESTIGADOR CONTRATADO",9,"CONTRATADOS INVESTIGACION","TALEN"," POSDOCTORAL TALENTIA JUNTA ANDALUCIA",4,32.1]
[7,"INVESTIGADOR EN FORMACIÓN",3,"CONTRATO LABORAL","CBE11","CONTRATOS PREDOCTORALES BECARIOS PROY. EXCELENCIA L.14/2011",4,25.02]
[7,"INVESTIGADOR EN FORMACIÓN",3,"CONTRATO LABORAL","FPPP","FORMACION DE INVESTIGADORES. PLAN PROPIO",4,32.1]
[7,"INVESTIGADOR EN FORMACIÓN",3,"CONTRATO LABORAL","FPP11","CONTRATOS PREDOCTORALES PLAN PROPIO LEY 14/2011",4,25.02]
[7,"INVESTIGADOR EN FORMACIÓN",3,"CONTRATO LABORAL","FPU","CONTRATOS REAL DECRETO 63/2006",4,30.9]
[7,"INVESTIGADOR EN FORMACIÓN",3,"CONTRATO LABORAL","FPU11","CONTRATOS  PREDOCTORALES LEY 14/2011 FPU",4,25.02]
[7,"INVESTIGADOR EN FORMACIÓN",3,"CONTRATO LABORAL","PROI","CONTRATOS PREDOCTORALES DE OTRAS INSTITUCIONES",4,25.02]
[7,"INVESTIGADOR EN FORMACIÓN",3,"CONTRATO LABORAL","11FPI","CONTRATOS PREDOCTORALES FORMACION DOCTORES LEY 14/2011",4,25.02]
[7,"INVESTIGADOR EN FORMACIÓN",11,"CONTRATO EN PRÁCTICAS","FPDID","INVESTIGADOR DOCTOR JUNTA ANDALUCIA AREAS DEFICITARIAS",5,32.1]
[7,"INVESTIGADOR EN FORMACIÓN",11,"CONTRATO EN PRÁCTICAS","FPP11","CONTRATOS PREDOCTORALES PLAN PROPIO LEY 14/2011",5,25.02]
[7,"INVESTIGADOR EN FORMACIÓN",11,"CONTRATO EN PRÁCTICAS","FPU","CONTRATOS REAL DECRETO 63/2006",5,30.9]
[7,"INVESTIGADOR EN FORMACIÓN",11,"CONTRATO EN PRÁCTICAS","11FPI","CONTRATOS PREDOCTORALES FORMACION DOCTORES LEY 14/2011",5,25.02]
[null,null,null,null,null,"PRÁCTICAS DE FORMACIÓN: 38,06€/MES"]

{"sheet":"Categorias","index":13,"n_rows":83,"n_cols":6,"rows_kept":83,"cut":false,"hidden":true,"merged":[[0,1,0,2]]}
[null,"AÑO 2023"]
[]
[]
[null,null,null,null,"BASE MAXIMA 2023",4495.5]
[null,"COLECTIVO"]
[]
[null,"NO INCLUIDOS EN EL R.D.L. 16/2013"]
[null,"DOCENTE FUNCIONARIO ANTERIOR A 31/12/2010"]
[]
[null,"INCLUIDOS EN EL R.D.L. 16/2013"]
[null,null,"C.Patronal","C. obrera","Ocupación (CNAE)"]
[null,"DOCENTE FUNCIONARIO POSTERIOR A 31/12/2010  (Reduc 5,5 ya aplicada)",0.23269999999999999,4.4900000000000002E-2,85]
[null,"(Pendiente Orden Cotiz.)"]
[null,"DOCENTE CON CONTRATO ADMINISTRATIVO",0.317,6.4500000000000002E-2,85]
[]
[null,"PROFESORADO LABORAL (NO FIJO)"]
[null,"PROFESOR AYUDANTE (CONTRATO 401 Obra o Servicio)",0.33100000000000002,6.5000000000000002E-2,85]
[null,"PROFESOR INTERINO T.C. (CONTRATO 410)",0.31900000000000001,6.4500000000000002E-2,85]
[null,"PROFESOR INTERINO T.P. (CONTRATO 510)",0.31900000000000001,6.4500000000000002E-2,85]
[null,"PROFESOR ASOCIADO (CONTRATO 501)",0.33100000000000002,6.5000000000000002E-2,85]
[]
[null,"PROFESORADO LABORAL (INDEFINIDO)"]
[null,"COLABORADOR",0.31900000000000001,6.4500000000000002E-2,85]
[null,"PROFESOR CONTRATADO DOCTOR",0.31900000000000001,6.4500000000000002E-2,85]
[]
[null,"P.A.S. LABORAL FIJO (CONTRATO 100) y SUSTITUCIONES (CONTRATO 410)"]
[null,"GRUPO I",0.31900000000000001,6.4500000000000002E-2,"a"]
[null,"GRUPO II",0.31900000000000001,6.4500000000000002E-2,"a"]
[null,"GRUPO III  y GRUPO IV ESPECIALIDADES"]
[null,"ENCARGADO DE EQUIPO JARDINES                                        18120826846",0.32250000000000001,6.4500000000000002E-2,81]
[null,"ENCARGADO DE EQUIPO MANTENIMIENTO                            18120826846",0.32250000000000001,6.4500000000000002E-2,81]
[null,"TÉC. AUX. LIMPIEZA                                                                18120826846",0.34,6.4500000000000002E-2,"G"]
[null,"TECNICO CONSERJERIA                                                          18120826846",0.32250000000000001,6.4500000000000002E-2,81]
[null,"TECNICO.ALMACEN                                                                 18120826846",0.32250000000000001,6.4500000000000002E-2,81]
[null,"TECNICO.OBRAS, EQUIPO Y MANTENIMIENTO                      18120826846",0.32250000000000001,6.4500000000000002E-2,81]
[null,"TECNICO.HOSTELERÍA                                                            18110583141",0.31900000000000001,6.4500000000000002E-2,56]
[null,"TECNICO. LABORATORIO                                                       18005275484",0.31900000000000001,6.4500000000000002E-2,"a"]
[null,"TECNICO. BIBLIOTECA Y MEDIOS AUDIOVISUALES               18005275484",0.31900000000000001,6.4500000000000002E-2,"a"]
[]
[]
[null,"PERSONAL LABORAL DE SUSTITUCIONES (CONTRATO 402 Acumulo tareas)"]
[null,"En este tipo de contrato aumenta la cuota patronal en cada una de la "]
[null,"especialidades anteriormente descritas en 1,20. La cuota obrera en 0,05"]
[]
[null,"FUNCIONARIOS DE CARRERA",0.26200000000000001,4.9000000000000002E-2,"a"]
[]
[null,"FUNCIONARIOS INTERINOS",0.317,6.4500000000000002E-2,"a"]
[]
[null,"INVESTIGACIÓN",null,null,"RLCE"]
[]
[null,"CONTRATO EN PRACTICAS  Y Ramón y Cajal     1810997000  CONTRATO 420",0.31900000000000001,6.4500000000000002E-2,"9901 (sólo R y C)"]
[null,"CONTRATO PREDOCTORAL                              18117409618  Contrato 401",0.26019999999999999,6.5000000000000002E-2,9921]
[null,"CONTRATO  OBRA O SERVICIO T.C./T.P.         18107821065  Conrato 401, 501",0.33100000000000002,6.5000000000000002E-2]
[null,"INVESTIGADORES EXTRACOMUNITARIOS        18118557349 Contrato 501",0.26400000000000001,4.9000000000000002E-2]
[null,"PRÁCTICAS DE FORMACIÓN                          18114374326",53.79,9.43,"Pendiente Orden Cotiz."]
[]
[]
[null,"Bases mínimas por grupo de cotización","Contingencias comun","T. parcial min./h"]
[null,1,1629.3,9.82,"Pend. Desarrollo normativo","."]
[null,2,1351.2,8.14,"Pend. Desarrollo normativo","."]
[null,3,1175.4000000000001,7.08,"Pend. Desarrollo normativo","."]
[null,"4,5,6,7,8………..",1166.7,7.03,"Pend. Desarrollo normativo","."]
[]
[]
[]
[]
[]
[]
[]
[]
[]
[]
[]
[]
[null,"INVESTIGACIÓN"]
[null,"FASE DE BECA","35,24 Euros/mes","6,18 Euros/mes"]
[null,"FASE DE CONTRATO  1810997000  CONTRATO 420",0.309,6.3500000000000001E-2]
[null,"CONTRATOS PREDOCTORALES    Contrato 401  18117409618",0.25019999999999998,6.4000000000000001E-2]
[null,"CONTRATOS PREDOCTORALES   a partir de 24/12/2015  contrato 420",0.2382,6.3500000000000001E-2]
[null,"CONTRATOS PREDOCTORALES   a partir de 01/05/2016  contrato 420",0.25019999999999998,6.4000000000000001E-2]
[null,"OBRA O SERVICIO T.C./T.P.   18107821065 CONTRATO 401",0.32100000000000001,6.4000000000000001E-2]
[null,"OBRA O SERVICIO T.C./T.P.   18107821065 CONTRATO 100",0.309,6.3500000000000001E-2]
[null,"PRÁCTICAS DE FORMACIÓN","35,24 Euros/mes","6,18 Euros/mes"]